{"text_format":"1","workbook":"xlsx","n_sheets":3,"sheets":["Macro1","Macro2","Form"],"not_rendered":{"charts":0,"images":8,"macros":1,"external_links":0,"defined_names":18,"comments":0,"pivot_tables":0},"unopened":[],"bounds":{"document_bytes":16777216,"sheet_cells":100000,"rows_first":2000,"rows_last":500,"rows_between":2000,"halvings":0,"cell_chars":16384,"cell_head_chars":4096},"cells_cut":0,"cells_raw":0,"read":"whole","date_system":"1900"}

{"sheet":"Macro1","index":0,"n_rows":0,"n_cols":0,"rows_kept":0,"cut":false,"hidden":false,"merged":[]}

{"sheet":"Macro2","index":1,"n_rows":0,"n_cols":0,"rows_kept":0,"cut":false,"hidden":false,"merged":[]}

{"sheet":"Form","index":2,"n_rows":74,"n_cols":27,"rows_kept":74,"cut":false,"hidden":false,"merged":[[2,1,2,5],[2,6,2,10],[38,26,39,26],[68,19,73,23],[67,1,67,17],[72,1,73,2],[55,7,56,8],[72,3,72,4],[72,5,72,6],[72,7,72,8],[72,9,72,10],[73,3,73,4],[59,14,60,16],[55,2,56,6],[57,2,58,6],[59,2,60,5],[59,7,60,8],[55,12,56,13],[57,12,58,13],[59,12,60,13],[59,19,66,23],[53,19,57,23],[72,11,73,12],[72,13,73,17],[73,5,73,6],[73,7,73,8],[73,9,73,10],[51,1,52,2],[66,1,66,6],[64,1,64,17],[61,1,63,17],[59,1,60,1],[55,1,56,1],[57,1,58,1],[53,1,54,2],[53,3,54,6],[51,7,52,8],[53,7,54,9],[53,10,54,10],[53,11,54,11],[51,9,52,11],[51,3,52,5],[59,11,60,11],[55,9,56,10],[55,11,56,11],[57,7,58,8],[65,7,66,12],[65,14,66,17],[59,6,60,6],[59,17,60,17],[0,1,0,8],[47,1,47,2],[0,15,1,17],[1,7,1,8],[18,15,18,17],[2,11,2,14],[1,1,1,3],[9,12,9,13],[17,13,17,14],[3,11,3,14],[15,15,15,17],[40,2,41,2],[10,11,10,12],[40,1,41,1],[40,5,41,5],[40,10,41,10],[21,7,22,10],[1,13,1,14],[1,9,1,12],[1,4,1,6],[13,7,14,10],[12,7,12,10],[3,1,11,5],[42,4,43,5],[46,1,46,4],[42,3,43,3],[5,11,5,12],[12,11,12,13],[6,11,6,12],[40,14,41,16],[7,11,7,12],[40,13,41,13],[15,11,15,12],[13,11,13,12],[13,13,13,15],[27,6,29,8],[30,6,32,8],[33,6,36,8],[23,1,24,10],[13,1,21,6],[22,11,22,14],[24,12,24,13],[22,15,24,17],[42,6,43,15],[40,17,41,17],[45,1,45,2],[59,9,60,10],[12,1,12,6],[26,1,26,8],[37,1,38,8],[26,9,26,17],[27,1,36,5],[10,15,10,17],[57,9,58,11],[51,12,52,13],[51,14,52,17],[53,14,54,17],[55,14,56,17],[51,6,52,6],[57,14,58,17],[3,6,11,10],[8,11,8,14],[4,11,4,12],[53,12,54,13],[42,1,43,2],[46,6,46,7],[48,1,48,2],[4,15,4,17],[5,15,5,17],[6,15,6,17],[0,25,0,26],[4,19,5,23],[7,19,10,23],[12,19,20,23],[22,19,27,23],[29,19,34,23],[36,19,40,23],[42,16,43,17],[16,12,16,13],[7,15,7,17],[42,19,51,23]]}
[null,"Custom Damper Retrofit Solution Form",null,null,null,null,null,null,null,{"$f":"IF(AND(Z46=TRUE, Z47=TRUE),\"In OR mm REQUIRED\",IF(AND(Z46=FALSE,Z47=FALSE),\"In or mm REQUIRED\",\"\"))","v":"In or mm REQUIRED"},"INCHES",null,"MILLIMETERS",null,null,{"$f":"IF(OR(H2=\"PM_PKX\",H2=\"SY4_SY5_SY6\",H2=\"SY7_SY8\"),\"UFSP0020\",\nIF(H2=\"SY9_SY10_SY11_SY12\",\"UFSP0022\",\nIF(AND(OR(H2=\"GM_GK\",H2=\"AM_NM\",H2=\"AF_NF\",H2=\"LM\",H2=\"LF\",H2=\"EF\",H2=\"LM_NM_AM_GM_N4\"),N2=1),\"UFSP0000\",\nIF(AND(OR(H2=\"GM_GK\",H2=\"AM_NM\",H2=\"AF_NF\",H2=\"LM\",H2=\"LF\",H2=\"EF\",H2=\"LM_NM_AM_GM_N4\"),N2=2),\"UFSP0008\",IF(M25=\"YES\", \"NO F/S APPLICATIONS\",\"\")))))","v":""},null,null,null,null,null,null,null,null,null,"Actuator and Qty. list:"]
[null,"UFSP Series",null,null,"NEW ACTUATOR:",null,null,null,null,"1  OR  2 ACTUATOR(S):",null,null,null,null,null,null,null,null,null,null,null,null,null,null,null,"PM_PKX","LF"]
[null,"MOUNT STYLE 1 ",null,null,null,null,"MOUNT STYLE 2",null,null,null,null,"MOUNT STYLE DIMENSIONS",null,null,null,null,null,null,null,null,null,null,null,null,null,1,1]
[null,null,null,null,null,null,null,null,null,null,null,"EX: 1.250 OR 1  1/4",null,null,null,null,null,null,null,null,null,null,null,null,null,null,2]
[null,null,null,null,null,null,null,null,null,null,null,"MOUNT STYLE:",null,null,null,{"$f":"IF(NOT(OR(N5=1,N5=2,N5=3,N5=4,N5=5)),\"MOUNT STYLE REQUIRED\",IF(N5=5,\"SUPPLY MOUNTING SKETCH\", IF(M25=\"YES\", \"NO F/S APPLICATIONS\",\"\")))","v":"MOUNT STYLE REQUIRED"},null,null,null,"Step 1: Choose the unit of measurement to be used to fill out the form. (In/mm)   \n",null,null,null,null,null,"SY4_SY5_SY6","EF"]
[null,null,null,null,null,null,null,null,null,null,null,"DIM A:",null,null,{"$f":"IF(AND(Z46=TRUE, Z47=FALSE, NOT((ISBLANK(N6)))),\"inch(es)\",IF(AND(Z47=TRUE, Z46=FALSE, NOT((ISBLANK(N6)))),\"mm\",\"\"))","v":""},{"$f":"IF(AND(OR(N5=1,N5=2),AND((ISBLANK(N11)),(ISBLANK(N6)))),\"CANNOT BE BLANK\",IF(AND(N5=3,Z32=TRUE),\"CANNOT BE BLANK\",IF(ISNUMBER(SEARCH(\"MM\",N6)),\"DO NOT INCLUDE UNIT OF MEASURE\",IF(ISNUMBER(SEARCH(CHAR(34),N6)),\"DO NOT INCLUDE UNIT OF MEASURE\",IF(ISNUMBER(SEARCH(\"in\",N6)),\"DO NOT INCLUDE UNIT OF MEASURE\",IF(AND(N5=3,Z28=TRUE),\"1.944\",IF(AND(N5=3,Z29=TRUE),\"2.474\",IF(AND(N5=3,Z30=TRUE),\"3.186\",IF(AND(N5=3,Z31=TRUE),\"3.896\",IF(M25=\"YES\", \"NO F/S APPLICATIONS\",\"\"))))))))))","v":""},null,null,null,null,null,null,null,null,null,1,1]
[null,null,null,null,null,null,null,null,null,null,null,"DIM B:",null,null,{"$f":"IF(AND(Z46=TRUE, Z47=FALSE, NOT((ISBLANK(N7)))),\"inch(es)\",IF(AND(Z47=TRUE, Z46=FALSE, NOT((ISBLANK(N7)))),\"mm\",\"\"))","v":""},{"$f":"IF(AND(OR(N5=1,N5=2),AND((ISBLANK(N11)),(ISBLANK(N7)))),\"CANNOT BE BLANK\",IF(AND(N5=3,Z32=TRUE),\"CANNOT BE BLANK\",IF(ISNUMBER(SEARCH(\"MM\",N7)),\"DO NOT INCLUDE UNIT OF MEASURE\",IF(ISNUMBER(SEARCH(CHAR(34),N7)),\"DO NOT INCLUDE UNIT OF MEASURE\",IF(ISNUMBER(SEARCH(\"in\",N7)),\"DO NOT INCLUDE UNIT OF MEASURE\",IF(AND(N5=3,Z28=TRUE),\"1.944\",IF(AND(N5=3,Z29=TRUE),\"2.474\",IF(AND(N5=3,Z30=TRUE),\"3.186\",IF(AND(N5=3,Z31=TRUE),\"3.896\",IF(M25=\"YES\", \"NO F/S APPLICATIONS\",\"\"))))))))))","v":""},null,null,null,null,null,null,null,null,null,"SY7_SY8",2]
[null,null,null,null,null,null,null,null,null,null,null,"DIM C:",null,null,{"$f":"IF(AND(Z46=TRUE, Z47=FALSE, NOT((ISBLANK(N8)))),\"inch(es)\",IF(AND(Z47=TRUE, Z46=FALSE, NOT((ISBLANK(N8)))),\"mm\",\"\"))","v":""},{"$f":"IF(M25=\"YES\",\"NO F/S APPLICATIONS\",IF(AND(ISBLANK(N8),OR(N5=1,N5=2,N5=3)),\"CANNOT BE BLANK\",IF(ISNUMBER(SEARCH(\"MM\",N8)),\"DO NOT INCLUDE UNIT OF MEASURE\",IF(ISNUMBER(SEARCH(CHAR(34),N8)),\"DO NOT INCLUDE UNIT OF MEASURE\",IF(ISNUMBER(SEARCH(\"in\",N8)),\"DO NOT INCLUDE UNIT OF MEASURE\",IF(AND(N8>2.1,C41=5),\"STEM MUST BE CUT TO 2'' \",\"\"))))))","v":""},null,null,null,"Step 2: If Belimo Tech Support has advised on which actuators to use fill out the 'New Actuator' and '1 or 2 Actuator(s)' fields, otherwise leave blank. ",null,null,null,null,null,1]
[null,null,null,null,null,null,null,null,null,null,null,"A & B MEASURED FROM CENTRE OF HOLE"]
[null,null,null,null,null,null,null,null,null,null,null,null," ---OR---",null,null,null,null,null,null,null,null,null,null,null,null,"SY9_SY10_SY11_SY12"]
[null,null,null,null,null,null,null,null,null,null,null," Bolt Circle (B.C.)",null,null,{"$f":"IF(AND(Z46=TRUE, Z47=FALSE, NOT((ISBLANK(N11)))),\"inch(es)\",IF(AND(Z47=TRUE, Z46=FALSE, NOT((ISBLANK(N11)))),\"mm\",\"\"))","v":""},{"$f":"IF(AND(OR(N5=1, N5=2),AND((ISBLANK(N11)),(ISBLANK(N6)))),\"CANNOT BE BLANK\",IF(ISNUMBER(SEARCH(\"MM\",N11)),\"DO NOT INCLUDE UNIT OF MEASURE\",IF(ISNUMBER(SEARCH(CHAR(34),N11)),\"DO NOT INCLUDE UNIT OF MEASURE\",IF(ISNUMBER(SEARCH(\"in\",N11)),\"DO NOT INCLUDE UNIT OF MEASURE\",\"\"))))","v":""},null,null,null,null,null,null,null,null,null,1,"LM_NM_AM_GM_N4"]
[null,null,null,null,null,null,null,null,null,null,null,"DIM A:",{"$f":"IF(ISBLANK(N11),\"\", IF(OR(N5=1,N5=2,N5=4),SIN(45*PI()/180)*N11,IF(N5=3,SIN(90*PI()/180)*N11,\"\")))","v":""},"DIM B:",{"$f":"IF(ISBLANK(N11), \"\", IF(OR(N5=1,N5=2,N5=4),SIN(45*PI()/180)*N11,IF(N5=3,\"N/A\",\"\")))","v":""},null,null,null,null,null,null,null,null,null,null,"GM_GK",1]
[null,"MOUNT STYLE 3 (NO MOUNTING/BRACKET)",null,null,null,null,null,"CHOOSE HOLE PATTERN",null,null,null,null,null,null,null,null,null,null,null,"Step 3: MOUNT STYLE DIMENSIONS Choose the mount style that most closely resembles the damper’s mount style. If there is no existing mounting choose Mount Style 2.  Mounting holes must be created according to the option picked from the 'Choose Hole Pattern' box. If none are applicable choose mount style 3 and provide a sketch and dimensions.",null,null,null,null,null,1,2]
[null,null,null,null,null,null,null,{"$f":"IF(OR(Z28=TRUE,Z29=TRUE,Z30=TRUE,Z31=TRUE), \"Customer to drill mounting holes according to selection\",\"Check Desired Mounting Hole Pattern\")","v":"Check Desired Mounting Hole Pattern"},null,null,null,"   MOUNTING HOLES: ",null,"Note: For oblong mounting holes give dimension of shortest side",null,null,null,null,null,null,null,null,null,null,null,2,"SY1"]
[null,null,null,null,null,null,null,null,null,null,null,null,null,"DRILLED"]
[null,null,null,null,null,null,null,"DIM A","DIM B","HOLE DIA","Check One","DRILLED DIA Ø",null,null,{"$f":"IF(AND(Z46=TRUE, Z47=FALSE, NOT((ISBLANK(N16)))),\"inch(es)\",IF(AND(Z47=TRUE, Z46=FALSE, NOT((ISBLANK(N16)))),\"mm\",\"\"))","v":""},{"$f":"IF(AND(ISBLANK(N5),ISBLANK(N19),ISBLANK(N16)),\"REQUIRE DRILLED OR TAPPED \",IF(AND(ISBLANK(N19),ISBLANK(N16),(N5=1)),\"REQUIRE DRILLED OR TAPPED. \",IF(AND(ISBLANK(N19),ISBLANK(N16),(N5=2)),\"REQUIRE DRILLED OR TAPPED. \",IF(AND(N5=3,Z32=TRUE,ISBLANK(N16),ISBLANK(N19)),\"REQUIRE DRILLED OR TAPPED. \",IF(AND(ISBLANK(N16),NOT(ISBLANK(N19))),\"\",IF(COUNT(FIND({\"a\",\"b\",\"c\",\"d\",\"e\",\"f\",\"g\",\"h\",\"i\",\"j\",\"k\",\"l\",\"m\",\"n\",\"o\",\"p\",\"q\",\"r\",\"s\",\"t\",\"u\",\"v\",\"w\",\"x\",\"y\",\"z\",\"A\",\"B\",\"C\",\"D\",\"E\",\"F\",\"G\",\"H\",\"I\",\"J\",\"K\",\"L\",\"M\",\"N\",\"O\",\"P\",\"Q\",\"R\",\"S\",\"T\",\"U\",\"V\",\"W\",\"X\",\"Y\",\"Z\",\"*\",\"=\",\"+\"},N16))>0,\"INVALID ENTRY\",IF(AND(N5=3,Z28=TRUE),\"0.400\",IF(AND(N5=3,Z29=TRUE),\"0.530\",IF(AND(N5=3,Z30=TRUE),\"0.530\",IF(AND(N5=3,Z31=TRUE),\"0.660\",\"\"))))))))))","v":"REQUIRE DRILLED OR TAPPED "},null,null,null,null,null,null,null,null,null,1,"SY2_SY3"]
[null,null,null,null,null,null,null,1.944,1.944,0.4,null,null,"---OR---",null,null,null,null,null,null,null,null,null,null,null,null,"AM_NM",1]
[null,null,null,null,null,null,null,2.4740000000000002,2.4740000000000002,0.53,null,null,null,"TAPPED EX:10-32",null,null,null,null,null,null,null,null,null,null,null,1,"OTHER"]
[null,null,null,null,null,null,null,3.1859999999999999,3.1859999999999999,0.53,null,null,"THREAD",null,null,{"$f":"IF(AND(ISBLANK(N5),ISBLANK(N16),ISBLANK(N19)),\"REQUIRE DRILLED OR TAPPED \",IF(AND(ISBLANK(N16),ISBLANK(N19),(N5=1)),\"REQUIRE DRILLED OR TAPPED. \",IF(AND(ISBLANK(N16),ISBLANK(N19),(N5=2)),\"REQUIRE DRILLED OR TAPPED. \",IF(AND(N5=3,Z32=TRUE,ISBLANK(N16),ISBLANK(N19)),\"REQUIRE DRILLED OR TAPPED. \",IF(AND(ISBLANK(N19),NOT(ISBLANK(N16))),\"\",IF(COUNT(FIND({\"a\",\"b\",\"c\",\"d\",\"e\",\"f\",\"g\",\"h\",\"i\",\"j\",\"k\",\"l\",\"n\",\"o\",\"p\",\"q\",\"r\",\"s\",\"t\",\"u\",\"v\",\"w\",\"y\",\"z\",\"A\",\"B\",\"C\",\"D\",\"E\",\"F\",\"G\",\"H\",\"I\",\"J\",\"K\",\"L\",\"N\",\"O\",\"P\",\"Q\",\"R\",\"S\",\"T\",\"U\",\"V\",\"W\",\"Y\",\"Z\",\"*\",\"=\",\"+\"},N19))>0,\"INVALID ENTRY\",\"\"))))))","v":"REQUIRE DRILLED OR TAPPED "},null,null,null,null,null,null,null,null,null,2,1]
[null,null,null,null,null,null,null,3.8959999999999999,3.8959999999999999,0.66,null,null,"SPEC.",null,null,null,null,null,null,null,null,null,null,null,null,"AF_NF",2]
[null,null,null,null,null,null,null,"OTHER","OTHER","OTHER",null,null,null,null,null,null,null,null,null,null,null,null,null,null,null,1,"LM"]
[null,null,null,null,null,null,null,{"$f":"IF(N5=3,\"Mounting surface must be able to withstand linkage and actuator weight\",\"\")","v":""},null,null,null,null,null,null,null,null,null,null,null,null,null,null,null,null,null,2,1]
[null,null,null,null,null,null,null,null,null,null,null,"Fire/Smoke (F/S) Application?",null,null,null,{"$f":"IF(AND(NOT(ISBLANK(N5))*ISBLANK(M25)),\"CANNOT BE BLANK\",IF(M25=\"YES\",\"UFSP LINKAGE NOT FOR F/S APPLICATIONS\",\"\"))","v":""},null,null,null,"Step 4: Is this for a fire/smoke application?                                             NOTE: UFSP Linkages should not be used for Fire/Smoke applications\n",null,null,null,null,null,null,2]
[null,"MOUNT STYLE 4 (SKETCH YOUR OWN MOUNT STYLE)"]
[]
[]
[null,"SHAFT STYLE 5 - ROUND SHAFT",null,null,null,null,null,null,null,"DAMPER OVERALL DIMENSIONS",null,null,null,null,null,null,null,null,null,null,null,null,null,null,null,"MOUNTING PATTERNS","Actuators"]
[null,false,null,null,null,null,"Customer must cut damper Shaft to 2\" above mounting surface",null,null,"Customer must drill Mounting holes to bracket/mounting surface",null,null,null,null,null,null,null,null,null,null,null,null,null,null,null,false,"PM_PKX"]
[null,null,null,null,null,null,null,null,null,null,null,null,null,null,null,null,null,null,null,null,null,null,null,null,null,false,"GM_GK"]
[null,null,null,null,null,null,null,null,null,null,null,null,null,null,null,null,null,null,null,"Step 5: SHAFT STYLE DIMENSIONS       If the damper shaft is a round shaft (hollow or solid) choose shaft style 4 and provide the shaft diameter, otherwise provide a sketch and dimensions of damper shaft. ",null,null,null,null,null,false,"AM_NM"]
[null,null,null,null,null,null,"Customer must drill mounting holes to bracket/mounting surface",null,null,null,null,null,null,null,null,null,null,null,null,null,null,null,null,null,null,false,"AF_NF"]
[null,null,null,null,null,null,null,null,null,null,null,null,null,null,null,null,null,null,null,null,null,null,null,null,null,false,"LM"]
[null,null,null,null,null,null,null,null,null,null,null,null,null," -OR-",null,null,null,null,null,null,null,null,null,null,null,"DAMPER Velocity","LF"]
[null,null,null,null,null,null,"Customer must drill pin hole into damper shaft using Belimo provided adapter as reference",null,null,null,null,null,null,null,null,null,null,null,null,null,null,null,null,null,null,"<1000 FPM","EF"]
[null,null,null,null,null,null,null,null,null,null,null,null,null,null,null,null,null,null,null,null,null,null,null,null,null,"1000-2500 FPM","LM_NM_AM_GM_N4"]
[null,null,null,null,null,null,null,null,null,null,null,null,null,null,null,null,null,null,null,null,null,null,null,null,null,"2500-3500 FPM","OTHER"]
[null,null,null,null,null,null,null,null,null,null,null,null,null,null,null,null,null,null,null,"Step 6: DAMPER OVERALL DIMENSIONS Fill out DIM E for damper diameter, or DIM E and DIM F for height and length depending on damper style.",null,null,null,null,null,"F/S APPLICATION"]
[null,"SHAFT STYLE 6 (SKETCH YOUR OWN SHAFT STYLE)",null,null,null,null,null,null,null,null,null,null,null,null,null,null,null,null,null,null,null,null,null,null,null,"YES"]
[null,null,null,null,null,null,null,null,null,null,null,null,null,null,null,null,null,null,null,null,null,null,null,null,null,"NO","Mount styles"]
[]
[null,"SHAFT STYLE ",null,null,"DIM D:",null,null,null,null,"DIM E:",null,null,"DIM F:",null,"CUSTOMER SPECIFIED TORQUE:",null,null,null,null,null,null,null,null,null,null,"Shaft Styles",1]
[null,null,null,null,null,null,null,null,null,null,null,null,null,null,null,null,null,null,null,null,null,null,null,null,null,5,2]
[null,{"$f":"IF(OR(C41=4,C41=5,C41=6,C41=7,C41=8,C41=9),\"\",IF(NOT(ISBLANK(N5)),\"SHAFT STYLE REQUIRED.\",\"SHAFT STYLE REQUIRED\"))","v":"SHAFT STYLE REQUIRED"},null,null,{"$f":"IF(AND(ISBLANK(F41),OR(C41=5)),\"CANNOT BE BLANK\",IF(ISNUMBER(SEARCH(\"MM\",F41)),\"DO NOT INCLUDE UNIT OF MEASURE\",IF(ISNUMBER(SEARCH(CHAR(34),F41)),\"DO NOT INCLUDE UNIT OF MEASURE\",IF(ISNUMBER(SEARCH(\"in\",F41)),\"DO NOT INCLUDE UNIT OF MEASURE\",\"\"))))","v":""},null,{"$f":"IF(M25=\"YES\",\"UFSP LINKAGE NOT FOR F/S APPLICATIONS\", \"\")","v":""},null,null,null,null,null,null,null,null,null,{"$f":"IF(AND(ISBLANK(R41),C41=4,L54=\"REQUIRED\",L60=\"REQUIRED\",R60=\"REQUIRED\"),\"REQUIRED\",\" \")","v":" "},null,null,"Step 7: CUSTOMER SPECIFIED TORQUE  'CUSTOMER SPECIFIED TORQUE' is highly recommended to be filled out. If 'CUSTOMER SPECIFIED TORQUE' is not filled out customer will need to fill out 'ARE DAMPER SECTIONS MECHANIACLLY LINKED?', 'VELOCITY (FPM)', and 'OPPOSED/ PARALLEL BLADE' fields bellow.",null,null,null,null,null,6,3]
[null,null,null,null,null,null,null,null,null,null,null,null,null,null,null,null,null,null,null,null,null,null,null,null,null,null,4]
[]
[null,"ACTUATOR",null,null,null,null,null,null,null,null,null,null,null,null,null,null,null,null,null,null,null,null,null,null,null,false,"Inches"]
[null,"NEW ACTUATOR REQUERMENTS:",null,null,null,null,"CONTROL TYPE:",null,"ON/OFF",null,"FLOATING POINT",null,null,null,null,null,null,null,null,null,null,null,null,null,null,false,"Milimeters"]
[null,"FAIL SAFE:",null,"YES","NO",null,null,null,null,null,null,"VDC",null,"PWM",null,null,null,null,null,null,null,null,null,null,null,"DAMPER SECTIONS MECH LINKED?"]
[null,"FAIL POSSITION:",null,"NO","NC",null,"INDOOR",null,"OUTDOOR",null,null,null,null,"RANGE:",null,"RANGE:",null,null,null,null,null,null,null,null,null,"YES"]
[null,"VOLTAGE:",null,null,null,null,null,null,null,null,null,null,null,null,null,null,null,null,null,null,null,null,null,null,null,"NO"]
[]
[null,"COMPANY:",null,null,null,null,{"$f":"IF((ISBLANK(D52)),\"REQUIRED\",\"\")","v":"REQUIRED"},"QUANTITY:",null,null,null,null,"DAMPER MANUFACTURE:"]
[]
[null,"JOB NAME: ",null,null,null,null,null,"ARE DAMPER SECTIONS MECHANIACLLY LINKED?:",null,null,null,{"$f":"IF(AND(ISBLANK(R41),(ISBLANK(K54))),\"REQUIRED\",\"\")","v":"REQUIRED"},"DAMPER SERIES: ",null,null,null,null,null,null,"Step 8: ACTUATOR Provide information on the environment and process that this linkage system will be utilized in."]
[]
[null,"PO#:",null,null,null,null,null,"IF YES HOW MANY: SECTIONS?",null,null,null,{"$f":"IF(AND(K54=\"YES\",ISBLANK(J56)), \"REQUIRED\",\"\")","v":""},"DAMPER MODEL:"]
[]
[null,"PHONE#:",null,null,null,null,null,"SYSTEM PRESSURE:",null,null,null,null,"DAMPER SIZE:"]
[]
[null,"EMAIL: ",null,null,null,null,{"$f":"IF((ISBLANK(C60)),\"REQUIRED\",\"\")","v":"REQUIRED"},"VELOCITY (FPM):",null,null,null,{"$f":"IF(AND(ISBLANK(J60),ISBLANK(R41)),\"REQUIRED\",\"\")","v":"REQUIRED"},"OPPOSED/ PARALLEL BLADE:",null,null,null,null,{"$f":"IF(AND(ISBLANK(O60),(ISBLANK(R41))),\"REQUIRED\",\"\")","v":"REQUIRED"},null,"Step 9: Fill this form as fully as possible. Red fields are absolutely necessary. \nError and attention notices will always be \nin Red. Please note any error messages that may appear and make corrections according to them. Provide dimensions \nto the nearest 0.001”"]
[]
[null,"NOTE: THIS INFORMATION WILL BE UTILIZED IN THE FABRICATION OF A CUSTOM LINKAGE SYSTEM FOR YOUR DAMPER REQUIREMENT; THEREFORE, IT IS ESSENTIAL THAT THE ABOVE DIMENSIONS BE FURNISHED WITH READINGS TAKEN TO THE NEAREST .001\". ANY ERRONEOUS DIMENSIONS FURNISHED WHICH RESULT IN IMPROPER FIT OF THIS LINKAGE SYSTEM ARE NOT THE RESPONSIBILITY OF BELIMO AIR CONTROLS. ANY REWORK REQUIRED WILL RESULT IN AN EXTRA CHARGE. "]
[]
[]
[null,"CUSTOM KITS ARE DESIGNED TO YOUR UNIQUE SPECIFICATIONS AND ARE NOT RETURNABLE\n"]
[]
[null,"COMPANY CONTACT/DIMENSIONS PROVIDED BY:",null,null,null,null,null,null,null,null,null,null,null,"DATE:"]
[]
[null,null,null,null,null,null,null,null,null,null,null,null,null,null,null,null,null,null,null,"Step 10: Click the 'Submit Form' button below or save this form as a .xlsx file and send a copy to Belimo tech support. NOTE: Macro-enabled workbooks (.xlsm file types) cannot be accepted."]
[]
[]
[]
[null,"INTERNAL USE ONLY",null,"QUOTE#",null,null,null,"SO#",null,null,null,"NOTES:"]
[null,null,null,"NEW ACTUATOR:",null,null,null,"Line #"]